[Event "*** Titled Tuesday Blitz"]
[Site "Chess.com"]
[Date "2020.05.12"]
[Round "8"]
[White "harvsp123"]
[Black "VishnuPrasanna"]
[Result "0-1"]
[WhiteElo "2531"]
[BlackElo "2695"]
[TimeControl "180+1"]
[EndTime "11:31:52 PDT"]
[Termination "VishnuPrasanna won by resignation"]

1. d4 {[%clk 0:03:00.9]} 1... Nf6 {[%clk 0:02:59.4]} 2. c4 {[%clk 0:03:00.5]}
2... e6 {[%clk 0:03:00]} 3. Nc3 {[%clk 0:03:00.5]} 3... d5 {[%clk 0:03:00.3]} 4.
cxd5 {[%clk 0:02:59.9]} 4... exd5 {[%clk 0:03:01.2]} 5. Bg5 {[%clk 0:03:00.2]}
5... c6 {[%clk 0:03:01.8]} 6. e3 {[%clk 0:03:00.6]} 6... Be7 {[%clk 0:03:02.4]}
7. Bd3 {[%clk 0:03:00.9]} 7... Nbd7 {[%clk 0:03:02.8]} 8. Qc2 {[%clk 0:02:54.9]}
8... O-O {[%clk 0:03:03]} 9. Nge2 {[%clk 0:02:53.7]} 9... Re8 {[%clk 0:03:03.3]}
10. f3 {[%clk 0:02:49.6]} 10... b6 {[%clk 0:03:02.3]} 11. e4 {[%clk 0:02:46.6]}
11... dxe4 {[%clk 0:02:58.9]} 12. fxe4 {[%clk 0:02:47.5]} 12... Ng4 {[%clk
0:02:57.9]} 13. Bxe7 {[%clk 0:02:46.2]} 13... Qxe7 {[%clk 0:02:57.6]} 14. Qd2
{[%clk 0:02:45.2]} 14... c5 {[%clk 0:02:49.7]} 15. O-O-O {[%clk 0:02:16.5]}
15... Nf2 {[%clk 0:02:40.6]} 16. Nd5 {[%clk 0:01:58.8]} 16... Qd8 {[%clk
0:02:28.2]} 17. Qf4 {[%clk 0:01:57.4]} 17... Nxd1 {[%clk 0:02:26]} 18. Rxd1
{[%clk 0:01:50.5]} 18... cxd4 {[%clk 0:02:26.2]} 19. Nxd4 {[%clk 0:01:42.1]}
19... Bb7 {[%clk 0:02:21.2]} 20. Kb1 {[%clk 0:01:31.6]} 20... Nc5 {[%clk
0:01:53.2]} 21. Bc2 {[%clk 0:01:14.2]} 21... Nxe4 {[%clk 0:01:53]} 22. Nc7
{[%clk 0:00:51.7]} 22... g5 {[%clk 0:01:43]} 23. Qg4 {[%clk 0:00:21.5]} 23...
Qxc7 {[%clk 0:01:42.2]} 24. Nf5 {[%clk 0:00:20.1]} 24... Rac8 {[%clk 0:01:38.7]}
25. Bb3 {[%clk 0:00:19.2]} 25... Nd2+ {[%clk 0:01:36.2]} 26. Ka1 {[%clk
0:00:19.5]} 26... Nxb3+ {[%clk 0:01:33.3]} 27. axb3 {[%clk 0:00:19.4]} 27... Qf4
{[%clk 0:01:33.8]} 28. Nh6+ {[%clk 0:00:16.7]} 28... Kf8 {[%clk 0:01:28.1]} 29.
Qd7 {[%clk 0:00:14.1]} 29... Rcd8 {[%clk 0:01:11.4]} 30. Qxb7 {[%clk 0:00:10.6]}
30... Rxd1+ {[%clk 0:01:09.5]} 31. Ka2 {[%clk 0:00:11.5]} 31... Rd6 {[%clk
0:01:08]} 0-1

[Event "*** Titled Tuesday Blitz"]
[Site "Chess.com"]
[Date "2020.05.12"]
[Round "8"]
[White "TigrVShlyape"]
[Black "FelixJoseYnojosa"]
[Result "1-0"]
[WhiteElo "2821"]
[BlackElo "2626"]
[TimeControl "180+1"]
[EndTime "11:31:53 PDT"]
[Termination "TigrVShlyape won on time"]

1. e4 {[%clk 0:03:00.9]} 1... c5 {[%clk 0:02:59.9]} 2. Nf3 {[%clk 0:02:59.8]}
2... Nc6 {[%clk 0:02:59.9]} 3. d4 {[%clk 0:02:59.1]} 3... cxd4 {[%clk
0:03:00.8]} 4. Nxd4 {[%clk 0:02:59]} 4... e5 {[%clk 0:03:01.7]} 5. Nb5 {[%clk
0:02:58.5]} 5... d6 {[%clk 0:03:01.9]} 6. c4 {[%clk 0:02:58.6]} 6... Be7 {[%clk
0:03:01.5]} 7. N1c3 {[%clk 0:02:57.4]} 7... a6 {[%clk 0:03:01.1]} 8. Na3 {[%clk
0:02:57.7]} 8... Nf6 {[%clk 0:03:02]} 9. Be2 {[%clk 0:02:57.6]} 9... O-O {[%clk
0:03:02.9]} 10. Nc2 {[%clk 0:02:55.6]} 10... Nd7 {[%clk 0:03:03.8]} 11. O-O
{[%clk 0:02:55]} 11... Nc5 {[%clk 0:03:03.9]} 12. f3 {[%clk 0:02:46.6]} 12... h6
{[%clk 0:03:01.6]} 13. Be3 {[%clk 0:02:40.2]} 13... Bg5 {[%clk 0:03:01.3]} 14.
Bf2 {[%clk 0:02:39.6]} 14... Ne6 {[%clk 0:02:59.9]} 15. Nd5 {[%clk 0:02:36.6]}
15... Nf4 {[%clk 0:02:51.7]} 16. Nxf4 {[%clk 0:02:33.2]} 16... Bxf4 {[%clk
0:02:50.6]} 17. Qd3 {[%clk 0:02:26.2]} 17... Be6 {[%clk 0:02:45.8]} 18. Rfd1
{[%clk 0:02:25.8]} 18... Qf6 {[%clk 0:02:31.1]} 19. Qxd6 {[%clk 0:02:21.1]}
19... h5 {[%clk 0:02:31.1]} 20. g3 {[%clk 0:02:14.2]} 20... Bh6 {[%clk
0:02:25.6]} 21. Nb4 {[%clk 0:02:04.4]} 21... Nxb4 {[%clk 0:02:17.3]} 22. Qxb4
{[%clk 0:02:03.9]} 22... h4 {[%clk 0:02:18.2]} 23. Rd6 {[%clk 0:01:57]} 23... a5
{[%clk 0:02:12.7]} 24. Qc3 {[%clk 0:01:52.7]} 24... Rfc8 {[%clk 0:02:08.7]} 25.
c5 {[%clk 0:01:49.7]} 25... Qg5 {[%clk 0:02:03.6]} 26. Bc4 {[%clk 0:01:41.1]}
26... Bxc4 {[%clk 0:01:56.5]} 27. Qxc4 {[%clk 0:01:40.9]} 27... Rc7 {[%clk
0:01:45.2]} 28. Rad1 {[%clk 0:01:39.2]} 28... Rac8 {[%clk 0:01:41.4]} 29. Rd7
{[%clk 0:01:33.2]} 29... hxg3 {[%clk 0:01:30.3]} 30. Qxf7+ {[%clk 0:01:29.4]}
30... Kh7 {[%clk 0:01:25.5]} 31. hxg3 {[%clk 0:01:29.4]} 31... Rc6 {[%clk
0:01:18.4]} 32. Qf5+ {[%clk 0:01:28]} 32... Qxf5 {[%clk 0:01:12.4]} 33. exf5
{[%clk 0:01:28.1]} 33... R6c7 {[%clk 0:00:57.5]} 34. a4 {[%clk 0:01:24.4]} 34...
Bg5 {[%clk 0:00:49.2]} 35. Kf1 {[%clk 0:01:23.1]} 35... Bf6 {[%clk 0:00:47]} 36.
b3 {[%clk 0:01:22.5]} 36... Kh6 {[%clk 0:00:44.8]} 37. Be3+ {[%clk 0:01:22.3]}
37... Kh5 {[%clk 0:00:44.7]} 38. Kg2 {[%clk 0:01:21.5]} 1-0

[Event "*** Titled Tuesday Blitz"]
[Site "Chess.com"]
[Date "2020.05.12"]
[Round "8"]
[White "joppie2"]
[Black "tioloko"]
[Result "0-1"]
[WhiteElo "2879"]
[BlackElo "2678"]
[TimeControl "180+1"]
[EndTime "11:31:55 PDT"]
[Termination "tioloko won by resignation"]

1. e4 {[%clk 0:03:00.9]} 1... c6 {[%clk 0:02:59.4]} 2. d4 {[%clk 0:02:59.8]}
2... d5 {[%clk 0:02:59.2]} 3. Nd2 {[%clk 0:03:00.4]} 3... dxe4 {[%clk
0:02:58.7]} 4. Nxe4 {[%clk 0:03:01.3]} 4... Bf5 {[%clk 0:02:58.3]} 5. Ng3 {[%clk
0:03:01.4]} 5... Bg6 {[%clk 0:02:57.7]} 6. h4 {[%clk 0:03:01.5]} 6... h6 {[%clk
0:02:57.3]} 7. Bd3 {[%clk 0:02:58]} 7... Bxd3 {[%clk 0:02:56]} 8. Qxd3 {[%clk
0:02:58.9]} 8... e6 {[%clk 0:02:56.9]} 9. N1e2 {[%clk 0:02:58.7]} 9... Nf6
{[%clk 0:02:56]} 10. Bd2 {[%clk 0:02:59]} 10... Nbd7 {[%clk 0:02:54.4]} 11.
O-O-O {[%clk 0:02:59]} 11... Be7 {[%clk 0:02:52.6]} 12. Kb1 {[%clk 0:02:58.1]}
12... Qc7 {[%clk 0:02:50.7]} 13. Ne4 {[%clk 0:02:58]} 13... Nxe4 {[%clk
0:02:49.6]} 14. Qxe4 {[%clk 0:02:58.9]} 14... Nf6 {[%clk 0:02:50.2]} 15. Qf3
{[%clk 0:02:57.2]} 15... O-O-O {[%clk 0:02:43]} 16. g4 {[%clk 0:02:54.2]} 16...
Bf8 {[%clk 0:02:28.1]} 17. g5 {[%clk 0:02:47]} 17... hxg5 {[%clk 0:02:24.8]} 18.
hxg5 {[%clk 0:02:47.9]} 18... Rxh1 {[%clk 0:02:23]} 19. Rxh1 {[%clk 0:02:48.8]}
19... Nd5 {[%clk 0:02:17.9]} 20. c4 {[%clk 0:02:43.8]} 20... Nb6 {[%clk
0:02:17]} 21. Ba5 {[%clk 0:02:43.6]} 21... Qd7 {[%clk 0:02:12.6]} 22. c5 {[%clk
0:02:40.5]} 22... Nc4 {[%clk 0:02:08.4]} 23. Bc3 {[%clk 0:02:32.3]} 23... e5
{[%clk 0:01:55.3]} 24. dxe5 {[%clk 0:01:36.1]} 24... Bxc5 {[%clk 0:01:54.2]} 25.
Nc1 {[%clk 0:01:08.3]} 25... Kb8 {[%clk 0:01:48]} 26. Nb3 {[%clk 0:01:04.7]}
26... Bb6 {[%clk 0:01:46.9]} 27. Qe4 {[%clk 0:01:03.5]} 27... Qe6 {[%clk
0:01:43.6]} 28. Rh4 {[%clk 0:00:49]} 28... Bxf2 {[%clk 0:01:32.8]} 29. Rf4
{[%clk 0:00:45.3]} 29... Rd1+ {[%clk 0:00:55.5]} 30. Nc1 {[%clk 0:00:43.4]}
30... Be3 {[%clk 0:00:51.1]} 0-1

[Event "*** Titled Tuesday Blitz"]
[Site "Chess.com"]
[Date "2020.05.12"]
[Round "8"]
[White "Mikhail_Golubev"]
[Black "GodDMuhammad"]
[Result "1-0"]
[WhiteElo "2523"]
[BlackElo "2293"]
[TimeControl "180+1"]
[EndTime "11:31:57 PDT"]
[Termination "Mikhail_Golubev won by checkmate"]

1. e4 {[%clk 0:03:00.9]} 1... c6 {[%clk 0:02:58.8]} 2. d4 {[%clk 0:03:00.4]}
2... d5 {[%clk 0:02:58.2]} 3. Nc3 {[%clk 0:03:00.5]} 3... dxe4 {[%clk
0:02:58.1]} 4. Nxe4 {[%clk 0:03:00.7]} 4... Bf5 {[%clk 0:02:59]} 5. Ng3 {[%clk
0:03:00.5]} 5... Bg6 {[%clk 0:02:59.3]} 6. c3 {[%clk 0:03:00.8]} 6... Qc7 {[%clk
0:02:59.1]} 7. N1e2 {[%clk 0:02:42.9]} 7... e6 {[%clk 0:02:58.5]} 8. h4 {[%clk
0:02:30.3]} 8... h6 {[%clk 0:02:54.3]} 9. Nf4 {[%clk 0:02:29.6]} 9... Bh7 {[%clk
0:02:54.2]} 10. Bc4 {[%clk 0:02:23.7]} 10... Nf6 {[%clk 0:02:53]} 11. O-O {[%clk
0:02:18.9]} 11... Bd6 {[%clk 0:02:52.1]} 12. Ngh5 {[%clk 0:02:08.3]} 12... Nxh5
{[%clk 0:02:46.8]} 13. Nxh5 {[%clk 0:02:08]} 13... O-O {[%clk 0:02:46.2]} 14.
Qg4 {[%clk 0:01:44.7]} 14... Bg6 {[%clk 0:02:37.2]} 15. Nxg7 {[%clk 0:01:41.3]}
15... Kxg7 {[%clk 0:02:19.6]} 16. h5 {[%clk 0:01:40.7]} 16... e5 {[%clk
0:02:13.6]} 17. hxg6 {[%clk 0:01:36.5]} 17... fxg6 {[%clk 0:02:13.5]} 18. dxe5
{[%clk 0:01:12.5]} 18... Bxe5 {[%clk 0:02:13.2]} 19. f4 {[%clk 0:01:12.3]} 19...
Bd6 {[%clk 0:01:28]} 20. f5 {[%clk 0:01:06.4]} 20... g5 {[%clk 0:01:27.9]} 21.
Bxg5 {[%clk 0:00:57.7]} 21... hxg5 {[%clk 0:01:07.8]} 22. Qxg5+ {[%clk
0:00:55.2]} 22... Kh8 {[%clk 0:01:03.2]} 23. Rf3 {[%clk 0:00:45.9]} 23... Bc5+
{[%clk 0:00:47.5]} 24. Kh1 {[%clk 0:00:35.2]} 24... Qh7+ {[%clk 0:00:21.2]} 25.
Rh3 {[%clk 0:00:34.4]} 25... Nd7 {[%clk 0:00:16.6]} 26. Rxh7+ {[%clk 0:00:32.6]}
26... Kxh7 {[%clk 0:00:17.5]} 27. Qg6+ {[%clk 0:00:32.7]} 27... Kh8 {[%clk
0:00:17.8]} 28. Qh6# {[%clk 0:00:32.9]} 1-0

[Event "*** Titled Tuesday Blitz"]
[Site "Chess.com"]
[Date "2020.05.12"]
[Round "8"]
[White "Vesper2018"]
[Black "Sergey85Rodchenkov"]
[Result "0-1"]
[WhiteElo "2250"]
[BlackElo "2510"]
[TimeControl "180+1"]
[EndTime "11:31:58 PDT"]
[Termination "Sergey85Rodchenkov won by resignation"]

1. e4 {[%clk 0:03:00.3]} 1... c5 {[%clk 0:02:59.5]} 2. Nf3 {[%clk 0:03:00.6]}
2... e6 {[%clk 0:03:00.1]} 3. Nc3 {[%clk 0:03:00.2]} 3... a6 {[%clk 0:02:59.9]}
4. d4 {[%clk 0:03:00.5]} 4... cxd4 {[%clk 0:03:00.3]} 5. Nxd4 {[%clk 0:03:00.8]}
5... Qc7 {[%clk 0:03:00.9]} 6. Be2 {[%clk 0:02:59.2]} 6... Nf6 {[%clk
0:03:01.1]} 7. O-O {[%clk 0:02:57.8]} 7... Nc6 {[%clk 0:02:56.9]} 8. Be3 {[%clk
0:02:52.2]} 8... Bb4 {[%clk 0:02:56.2]} 9. f3 {[%clk 0:02:36.5]} 9... O-O {[%clk
0:02:54.4]} 10. Na4 {[%clk 0:02:21.1]} 10... d5 {[%clk 0:02:41.8]} 11. a3 {[%clk
0:01:42.2]} 11... Bd6 {[%clk 0:02:39.6]} 12. Nxc6 {[%clk 0:01:35.5]} 12... bxc6
{[%clk 0:02:21.5]} 13. h3 {[%clk 0:00:56.8]} 13... Rb8 {[%clk 0:02:10.8]} 14.
Bd3 {[%clk 0:00:50.9]} 14... Bh2+ {[%clk 0:02:06.5]} 15. Kh1 {[%clk 0:00:49.8]}
15... Nh5 {[%clk 0:01:55.4]} 16. Re1 {[%clk 0:00:28.4]} 16... Bg3 {[%clk
0:01:26.2]} 17. Re2 {[%clk 0:00:26.3]} 17... Nf4 {[%clk 0:01:19.9]} 18. Rd2
{[%clk 0:00:23.3]} 18... Qe5 {[%clk 0:00:58.6]} 19. c4 {[%clk 0:00:18.7]} 19...
Qh5 {[%clk 0:00:47.7]} 20. Qf1 {[%clk 0:00:18.5]} 20... e5 {[%clk 0:00:44.7]}
21. Bxf4 {[%clk 0:00:18.5]} 21... Bxf4 {[%clk 0:00:43.7]} 22. Rc2 {[%clk
0:00:17.6]} 22... d4 {[%clk 0:00:41.9]} 23. c5 {[%clk 0:00:17.7]} 23... Qh4
{[%clk 0:00:41.1]} 24. Nb6 {[%clk 0:00:16.5]} 24... Qg3 {[%clk 0:00:39.8]} 25.
Kg1 {[%clk 0:00:15.4]} 25... Bxh3 {[%clk 0:00:38.5]} 26. Qf2 {[%clk 0:00:15.3]}
26... Be3 {[%clk 0:00:38.1]} 0-1

[Event "*** Titled Tuesday Blitz"]
[Site "Chess.com"]
[Date "2020.05.12"]
[Round "8"]
[White "SahaNeelash"]
[Black "Drags95"]
[Result "1-0"]
[WhiteElo "2553"]
[BlackElo "2706"]
[TimeControl "180+1"]
[EndTime "11:32:00 PDT"]
[Termination "SahaNeelash won by resignation"]

1. d4 {[%clk 0:03:00.9]} 1... Nf6 {[%clk 0:02:58.4]} 2. Bg5 {[%clk 0:03:00.4]}
2... d5 {[%clk 0:02:54.6]} 3. e3 {[%clk 0:02:57.2]} 3... c5 {[%clk 0:02:41.7]}
4. Bxf6 {[%clk 0:02:56.4]} 4... gxf6 {[%clk 0:02:38.9]} 5. Nc3 {[%clk
0:02:55.3]} 5... e6 {[%clk 0:02:36]} 6. Qh5 {[%clk 0:02:54.4]} 6... Nc6 {[%clk
0:02:27.3]} 7. Nf3 {[%clk 0:02:50.4]} 7... Qb6 {[%clk 0:02:13.8]} 8. O-O-O
{[%clk 0:02:40.8]} 8... cxd4 {[%clk 0:02:12.4]} 9. Nxd4 {[%clk 0:02:35.5]} 9...
Bd7 {[%clk 0:02:11]} 10. Bb5 {[%clk 0:02:27.3]} 10... Bb4 {[%clk 0:01:58.7]} 11.
Na4 {[%clk 0:01:23.9]} 11... Qc7 {[%clk 0:01:51.6]} 12. a3 {[%clk 0:01:20]}
12... Be7 {[%clk 0:01:35.9]} 13. Nc3 {[%clk 0:01:16.6]} 13... a6 {[%clk
0:01:34.5]} 14. Bxc6 {[%clk 0:01:15]} 14... bxc6 {[%clk 0:01:34.6]} 15. e4
{[%clk 0:01:12.5]} 15... dxe4 {[%clk 0:01:24.5]} 16. Rhe1 {[%clk 0:01:02]} 16...
f5 {[%clk 0:01:22]} 17. f3 {[%clk 0:00:58.5]} 17... c5 {[%clk 0:01:17.3]} 18.
Nxf5 {[%clk 0:00:43.8]} 18... exf5 {[%clk 0:01:06.7]} 19. Nd5 {[%clk 0:00:43.1]}
19... Qe5 {[%clk 0:01:07.3]} 20. fxe4 {[%clk 0:00:40.3]} 20... Rb8 {[%clk
0:00:50.8]} 21. c3 {[%clk 0:00:36]} 21... Qg7 {[%clk 0:00:19.4]} 22. exf5 {[%clk
0:00:32.1]} 22... Qxg2 {[%clk 0:00:13.9]} 23. Rxe7+ {[%clk 0:00:30.6]} 1-0

[Event "*** Titled Tuesday Blitz"]
[Site "Chess.com"]
[Date "2020.05.12"]
[Round "8"]
[White "Durarbayli"]
[Black "Mr_Sinigami"]
[Result "1-0"]
[WhiteElo "2790"]
[BlackElo "2607"]
[TimeControl "180+1"]
[EndTime "11:32:01 PDT"]
[Termination "Durarbayli won by resignation"]

1. e4 {[%clk 0:03:00.9]} 1... c5 {[%clk 0:02:56.9]} 2. b3 {[%clk 0:03:01]} 2...
Nc6 {[%clk 0:02:54.9]} 3. Bb2 {[%clk 0:03:00.8]} 3... Nf6 {[%clk 0:02:52.2]} 4.
e5 {[%clk 0:03:00.3]} 4... Nd5 {[%clk 0:02:51.8]} 5. Nf3 {[%clk 0:03:00.9]} 5...
e6 {[%clk 0:02:50]} 6. c4 {[%clk 0:03:01]} 6... Nde7 {[%clk 0:02:41]} 7. Nc3
{[%clk 0:03:00.2]} 7... Nf5 {[%clk 0:02:36.9]} 8. Ne4 {[%clk 0:02:55.8]} 8... d5
{[%clk 0:02:21.3]} 9. exd6 {[%clk 0:02:53.9]} 9... Nxd6 {[%clk 0:02:20.7]} 10.
Nxc5 {[%clk 0:02:53.4]} 10... Nxc4 {[%clk 0:01:55.4]} 11. bxc4 {[%clk
0:02:37.4]} 11... Bxc5 {[%clk 0:01:53.7]} 12. Bxg7 {[%clk 0:02:37.8]} 12... Rg8
{[%clk 0:01:51.4]} 13. Bc3 {[%clk 0:02:38.1]} 13... e5 {[%clk 0:01:41.9]} 14.
Qc2 {[%clk 0:02:34.9]} 14... Qf6 {[%clk 0:01:31.3]} 15. Qxh7 {[%clk 0:02:24]}
15... Rh8 {[%clk 0:01:09.2]} 16. Qc2 {[%clk 0:02:22.6]} 16... Bf5 {[%clk
0:00:59.9]} 17. Bd3 {[%clk 0:02:21.4]} 17... Bxd3 {[%clk 0:00:56.7]} 18. Qxd3
{[%clk 0:02:22.3]} 18... Rd8 {[%clk 0:00:37.1]} 19. Qe4 {[%clk 0:02:21.7]} 19...
Bd4 {[%clk 0:00:27.4]} 20. O-O {[%clk 0:02:15.7]} 20... Bxc3 {[%clk 0:00:26.3]}
21. dxc3 {[%clk 0:02:15.4]} 21... Rg8 {[%clk 0:00:18.7]} 22. Rfe1 {[%clk
0:02:11.6]} 22... Kf8 {[%clk 0:00:12.2]} 23. Nxe5 {[%clk 0:01:59]} 23... Nxe5
{[%clk 0:00:11.7]} 24. Qxe5 {[%clk 0:01:59.9]} 24... Qxe5 {[%clk 0:00:11.4]} 25.
Rxe5 {[%clk 0:02:00.8]} 25... Rg4 {[%clk 0:00:11.4]} 26. Rb5 {[%clk 0:01:48.7]}
26... b6 {[%clk 0:00:10.3]} 27. c5 {[%clk 0:01:46.5]} 27... Rg5 {[%clk 0:00:08]}
28. h4 {[%clk 0:01:40.1]} 28... Re5 {[%clk 0:00:06.8]} 29. Rab1 {[%clk
0:01:36.2]} 29... bxc5 {[%clk 0:00:06.4]} 30. Rb8 {[%clk 0:01:36.1]} 30... Rxb8
{[%clk 0:00:06.5]} 31. Rxb8+ {[%clk 0:01:36.5]} 31... Kg7 {[%clk 0:00:07.4]} 32.
Rb7 {[%clk 0:01:34.3]} 32... Re1+ {[%clk 0:00:07]} 33. Kh2 {[%clk 0:01:33.7]}
33... Re2 {[%clk 0:00:07.4]} 34. f3 {[%clk 0:01:30.7]} 34... Rxa2 {[%clk
0:00:07]} 35. Rc7 {[%clk 0:01:30.9]} 35... Ra5 {[%clk 0:00:06.3]} 36. g4 {[%clk
0:01:29.8]} 36... Kf6 {[%clk 0:00:06]} 37. Kg3 {[%clk 0:01:30]} 37... Ke6 {[%clk
0:00:05.9]} 38. h5 {[%clk 0:01:30.4]} 38... Kf6 {[%clk 0:00:05.6]} 39. c4 {[%clk
0:01:28.3]} 1-0

[Event "*** Titled Tuesday Blitz"]
[Site "Chess.com"]
[Date "2020.05.12"]
[Round "8"]
[White "Didici"]
[Black "Yaacovn"]
[Result "1-0"]
[WhiteElo "2647"]
[BlackElo "2823"]
[TimeControl "180+1"]
[EndTime "11:32:04 PDT"]
[Termination "Didici won by resignation"]

1. d4 {[%clk 0:03:00.9]} 1... Nf6 {[%clk 0:02:59.9]} 2. c4 {[%clk 0:03:01]} 2...
e5 {[%clk 0:03:00.2]} 3. dxe5 {[%clk 0:03:00.2]} 3... Ne4 {[%clk 0:03:00.7]} 4.
a3 {[%clk 0:02:56.2]} 4... d6 {[%clk 0:03:00.6]} 5. exd6 {[%clk 0:02:53.9]} 5...
Bxd6 {[%clk 0:03:01.5]} 6. Nf3 {[%clk 0:02:53.2]} 6... Nxf2 {[%clk 0:03:01.8]}
7. Qd4 {[%clk 0:02:35.1]} 7... Nxh1 {[%clk 0:03:00.3]} 8. Qxg7 {[%clk
0:02:34.3]} 8... Rf8 {[%clk 0:03:00.9]} 9. Qxh7 {[%clk 0:02:21.6]} 9... Ng3
{[%clk 0:02:48.7]} 10. c5 {[%clk 0:01:18.9]} 10... Bf5 {[%clk 0:02:33.1]} 11.
Qh6 {[%clk 0:01:18.3]} 11... Nxf1 {[%clk 0:02:23.8]} 12. cxd6 {[%clk 0:01:17.6]}
12... Qxd6 {[%clk 0:02:19.3]} 13. Qxd6 {[%clk 0:01:16.8]} 13... cxd6 {[%clk
0:02:19.6]} 14. Kxf1 {[%clk 0:01:17.2]} 14... Nc6 {[%clk 0:02:19.2]} 15. Nc3
{[%clk 0:01:16.4]} 15... O-O-O {[%clk 0:02:19.2]} 16. Bf4 {[%clk 0:01:12.9]}
16... d5 {[%clk 0:01:55.8]} 17. Nb5 {[%clk 0:00:33.5]} 17... Kd7 {[%clk
0:01:20.6]} 18. Nd6 {[%clk 0:00:32.5]} 18... Be4 {[%clk 0:01:17.2]} 19. Nxb7
{[%clk 0:00:31.2]} 19... Ke6 {[%clk 0:01:11.8]} 20. Nxd8+ {[%clk 0:00:27.9]}
20... Rxd8 {[%clk 0:01:11.1]} 21. Rc1 {[%clk 0:00:24.8]} 21... d4 {[%clk
0:01:10.3]} 22. Ng5+ {[%clk 0:00:21.6]} 22... Kf5 {[%clk 0:01:07.6]} 23. Nxe4
{[%clk 0:00:22.5]} 23... Kxe4 {[%clk 0:01:06.1]} 24. Bc7 {[%clk 0:00:21.4]}
24... Rc8 {[%clk 0:00:52.8]} 25. Rxc6 {[%clk 0:00:20.6]} 25... Kd5 {[%clk
0:00:53.7]} 26. Rc2 {[%clk 0:00:20.2]} 26... f5 {[%clk 0:00:53.6]} 27. Kf2
{[%clk 0:00:19.7]} 27... Ke4 {[%clk 0:00:54.1]} 28. h4 {[%clk 0:00:19.8]} 28...
f4 {[%clk 0:00:53]} 29. b4 {[%clk 0:00:18.3]} 29... a6 {[%clk 0:00:52.8]} 30.
Rc5 {[%clk 0:00:17.7]} 30... Re8 {[%clk 0:00:49.9]} 31. Re5+ {[%clk 0:00:17.2]}
31... Rxe5 {[%clk 0:00:48.8]} 32. Bxe5 {[%clk 0:00:18.1]} 32... Kxe5 {[%clk
0:00:49.4]} 33. Kf3 {[%clk 0:00:18.6]} 33... Kf5 {[%clk 0:00:49.2]} 34. h5
{[%clk 0:00:18.9]} 34... Kg5 {[%clk 0:00:47.9]} 35. h6 {[%clk 0:00:19.3]} 35...
d3 {[%clk 0:00:47.8]} 36. exd3 {[%clk 0:00:18.5]} 1-0

[Event "*** Titled Tuesday Blitz"]
[Site "Chess.com"]
[Date "2020.05.12"]
[Round "8"]
[White "Grineva_Marianna"]
[Black "Buffy7"]
[Result "0-1"]
[WhiteElo "2142"]
[BlackElo "2661"]
[TimeControl "180+1"]
[EndTime "11:32:04 PDT"]
[Termination "Buffy7 won by checkmate"]

1. d4 {[%clk 0:03:00.9]} 1... Nf6 {[%clk 0:02:59.9]} 2. c4 {[%clk 0:03:00.9]}
2... e6 {[%clk 0:03:00.4]} 3. Nc3 {[%clk 0:03:00.8]} 3... Bb4 {[%clk 0:03:00.6]}
4. e3 {[%clk 0:03:01.1]} 4... b6 {[%clk 0:03:00.1]} 5. Ne2 {[%clk 0:02:59.6]}
5... Bb7 {[%clk 0:03:00.5]} 6. a3 {[%clk 0:03:00]} 6... Bd6 {[%clk 0:03:01.1]}
7. f3 {[%clk 0:02:51.1]} 7... c5 {[%clk 0:02:57.8]} 8. d5 {[%clk 0:02:37.9]}
8... exd5 {[%clk 0:02:58.1]} 9. cxd5 {[%clk 0:02:38.8]} 9... a6 {[%clk
0:02:51.3]} 10. e4 {[%clk 0:02:38]} 10... O-O {[%clk 0:02:49.6]} 11. Be3 {[%clk
0:02:27.2]} 11... Re8 {[%clk 0:02:48.1]} 12. Qd2 {[%clk 0:02:25.3]} 12... b5
{[%clk 0:02:48.2]} 13. Ng3 {[%clk 0:02:00.9]} 13... Bxg3+ {[%clk 0:02:38.8]} 14.
hxg3 {[%clk 0:02:00.5]} 14... d6 {[%clk 0:02:39.4]} 15. O-O-O {[%clk 0:01:53.2]}
15... Nbd7 {[%clk 0:02:37.4]} 16. Rh4 {[%clk 0:01:31.8]} 16... Ne5 {[%clk
0:02:36.1]} 17. Be2 {[%clk 0:01:27.4]} 17... b4 {[%clk 0:02:33.2]} 18. Nb1
{[%clk 0:01:25.4]} 18... a5 {[%clk 0:02:30.8]} 19. Rdh1 {[%clk 0:01:22]} 19...
c4 {[%clk 0:02:13.6]} 20. Bg5 {[%clk 0:01:15.6]} 20... Ng6 {[%clk 0:01:45.3]}
21. Rxh7 {[%clk 0:01:11.7]} 21... Rc8 {[%clk 0:01:41.5]} 22. Kd1 {[%clk
0:01:06.2]} 22... Ba6 {[%clk 0:01:32.5]} 23. Qd4 {[%clk 0:01:00.2]} 23... Re5
{[%clk 0:01:26.5]} 24. Bd2 {[%clk 0:00:49.8]} 24... Nxh7 {[%clk 0:01:18.5]} 25.
f4 {[%clk 0:00:47.3]} 25... Re8 {[%clk 0:01:14.1]} 26. axb4 {[%clk 0:00:45.7]}
26... Qe7 {[%clk 0:01:07.2]} 27. Bf3 {[%clk 0:00:42.1]} 27... Nf6 {[%clk
0:01:02.8]} 28. Re1 {[%clk 0:00:22.5]} 28... c3 {[%clk 0:01:03.3]} 29. Bxc3
{[%clk 0:00:20.2]} 29... Rc4 {[%clk 0:01:03]} 30. Qd2 {[%clk 0:00:20]} 30...
Nxe4 {[%clk 0:00:58.6]} 31. Bxe4 {[%clk 0:00:19.8]} 31... Rxe4 {[%clk
0:00:59.5]} 32. Rxe4 {[%clk 0:00:19.2]} 32... Qxe4 {[%clk 0:01:00.4]} 33. bxa5
{[%clk 0:00:19.2]} 33... Qxb1+ {[%clk 0:01:00.1]} 34. Qc1 {[%clk 0:00:18.5]}
34... Be2+ {[%clk 0:00:53.5]} 35. Kd2 {[%clk 0:00:18.5]} 35... Qd3+ {[%clk
0:00:53.3]} 36. Ke1 {[%clk 0:00:17.5]} 36... Bf3+ {[%clk 0:00:53.5]} 37. Kf2
{[%clk 0:00:16.8]} 37... Qe2+ {[%clk 0:00:53.8]} 38. Kg1 {[%clk 0:00:17.3]}
38... Qxg2# {[%clk 0:00:53.9]} 0-1